bitfinex-derivatives/quotes_BNBF0:USTF0_20251225
["timestamp","ask_amount","ask_price","bid_price","bid_amount"]
[1766640126995,1.17999816,843.3,842.65,0.88892008]
[1766640127197,0.20638733,843.31,842.65,0.88892008]
[1766640127500,1.18005044,843.3,842.65,0.88892008]
[1766640127701,0.20638733,843.31,842.65,0.88892008]
[1766640127997,1.18006009,843.3,842.65,0.88892008]
[1766640128300,0.20638733,843.31,842.66,0.88892008]
[1766640128599,1.18013137,843.3,842.66,0.88892008]
[1766640128902,0.20638733,843.31,842.66,0.88892008]
[1766640129102,1.18013137,843.3,842.66,0.88892008]
[1766640129299,0.20638733,843.31,842.66,0.88892008]
[1766640131198,0.20638733,843.31,842.67,0.88892008]
[1766640132298,0.20638733,843.31,842.68,0.88892008]
[1766640135305,0.20638733,843.31,842.69,0.88892008]
[1766640143020,0.88499405,843.42,842.72,0.88892008]
[1766640143424,0.20636775,843.41,842.72,0.88892008]
[1766640144523,1.0913618,843.41,842.7,0.88892008]
[1766640159336,1.17431769,843.4,842.7,0.88892008]
[1766640159535,1.17431769,843.39,842.7,0.88892008]
[1766640159735,1.17431769,843.38,842.7,0.88892008]
[1766640159939,1.17431769,843.37,842.7,0.88892008]
[1766640160236,1.17431769,843.36,842.7,0.88892008]
[1766640160435,1.17431769,843.35,842.7,0.88892008]
[1766640160640,1.17431769,843.34,842.7,0.88892008]
[1766640160935,1.17431769,843.33,842.7,0.88892008]
[1766640161136,1.17431769,843.32,842.7,0.88892008]
[1766640161338,1.17431769,843.31,842.7,0.88892008]
[1766640161536,1.0913618,843.41,842.7,0.88892008]
[1766640161736,1.17428209,843.4,842.7,0.88892008]
[1766640162034,1.17428209,843.39,842.7,0.88892008]
[1766640162236,1.17428209,843.38,842.7,0.88892008]
[1766640162438,1.17428209,843.37,842.7,0.88892008]
[1766640162734,1.17428209,843.36,842.7,0.88892008]
[1766640163044,1.17428209,843.35,842.7,0.88892008]
[1766640163335,1.17428209,843.34,842.7,0.88892008]
[1766640163545,1.17428209,843.33,842.7,0.88892008]
[1766640163736,1.17428209,843.32,842.7,0.88892008]
[1766640163940,1.17428209,843.31,842.7,0.88892008]
[1766640164240,1.17428209,843.3,842.7,0.88892008]
[1766640164437,1.0913618,843.41,842.7,0.88892008]
[1766640164636,1.174297,843.4,842.7,0.88892008]
[1766640164840,1.174297,843.39,842.7,0.88892008]
[1766640165041,1.174297,843.38,842.7,0.88892008]
[1766640165239,1.174297,843.37,842.7,0.88892008]
[1766640165437,1.174297,843.36,842.7,0.88892008]
[1766640165740,1.174297,843.35,842.7,0.88892008]
[1766640166035,1.174297,843.34,842.7,0.88892008]
[1766640166235,1.174297,843.33,842.7,0.88892008]
[1766640166440,1.174297,843.32,842.7,0.88892008]
[1766640166738,1.174297,843.31,842.7,0.88892008]
[1766640166938,1.174297,843.3,842.7,0.88892008]
[1766640167141,1.0913618,843.41,842.7,0.88892008]
[1766640167341,1.17430581,843.4,842.7,0.88892008]
[1766640167641,1.17430581,843.39,842.71,0.88892008]
[1766640167937,1.17430581,843.38,842.71,0.88892008]
[1766640168138,1.17430581,843.37,842.71,0.88892008]
[1766640168337,1.17430581,843.36,842.71,0.88892008]
[1766640168537,1.17430581,843.35,842.71,0.88892008]
[1766640168738,1.17430581,843.34,842.71,0.88892008]
[1766640168940,1.17430581,843.33,842.71,0.88892008]
[1766640169142,1.17430581,843.32,842.71,0.88892008]
[1766640169342,1.17430581,843.31,842.71,0.88892008]
[1766640169540,0.20636775,843.41,842.71,0.88892008]
[1766640169842,1.17433069,843.4,842.71,0.88892008]
[1766640170041,1.17433069,843.39,842.71,0.88892008]
[1766640170240,1.17433069,843.38,842.71,0.88892008]
[1766640170443,1.17433069,843.37,842.71,0.88892008]
[1766640170644,1.17433069,843.36,842.71,0.88892008]
[1766640170940,1.17433069,843.35,842.71,0.88892008]
[1766640171146,1.17433069,843.34,842.71,0.88892008]
[1766640171348,1.17433069,843.33,842.71,0.88892008]
[1766640171546,1.17433069,843.32,842.71,0.88892008]
[1766640171745,1.17433069,843.31,842.71,0.88892008]
[1766640171944,0.20636775,843.41,842.71,0.88892008]
[1766640172143,1.17434065,843.4,842.71,0.88892008]
[1766640172348,1.17434065,843.39,842.71,0.88892008]
[1766640172643,1.17434065,843.38,842.71,0.88892008]
[1766640172845,1.17434065,843.37,842.71,0.88892008]
[1766640173045,1.17434065,843.36,842.71,0.88892008]
[1766640173246,1.17434065,843.35,842.7,0.88892008]
[1766640173446,1.17434065,843.34,842.7,0.88892008]
[1766640173647,1.17434065,843.33,842.7,0.88892008]
[1766640173947,1.17434065,843.32,842.7,0.88892008]
[1766640174146,1.17434065,843.31,842.7,0.88892008]
[1766640174344,1.0913618,843.41,842.7,0.88892008]
[1766640174549,1.17451808,843.4,842.7,0.88892008]
[1766640174749,1.17451808,843.39,842.7,0.88892008]
[1766640175047,1.17451808,843.38,842.7,0.88892008]
[1766640175248,1.17451808,843.37,842.7,0.88892008]
[1766640175451,1.17451808,843.36,842.7,0.88892008]
[1766640175650,1.17451808,843.35,842.7,0.88892008]
[1766640175851,1.17451808,843.34,842.7,0.88892008]
[1766640176150,1.17451808,843.33,842.7,0.88892008]
[1766640176350,1.0913618,843.41,842.72,0.88892008]
[1766640176351,0.20636775,843.41,842.72,0.88892008]
[1766640176548,1.17452797,843.4,842.72,0.88892008]
[1766640176750,1.17452797,843.39,842.72,0.88892008]
[1766640176948,1.17452797,843.38,842.72,0.88892008]
[1766640177154,1.17452797,843.37,842.72,0.88892008]
[1766640177351,1.17452797,843.36,842.71,0.88892008]
[1766640177551,1.17452797,843.35,842.71,0.88892008]
[1766640177852,1.17452797,843.34,842.71,0.88892008]
[1766640178058,1.17452797,843.33,842.71,0.88892008]
[1766640178260,0.20636775,843.41,842.71,0.88892008]
[1766640178448,1.17447924,843.4,842.71,0.88892008]
[1766640178652,1.17447924,843.39,842.71,0.88892008]
[1766640178851,1.17447924,843.38,842.71,0.88892008]
[1766640179053,1.17447924,843.37,842.71,0.88892008]
[1766640179251,1.17447924,843.36,842.71,0.88892008]
[1766640179454,1.17447924,843.35,842.71,0.88892008]
[1766640179654,1.17447924,843.34,842.71,0.88892008]
[1766640179850,1.17447924,843.33,842.71,0.88892008]
[1766640180052,0.20636775,843.41,842.71,0.88892008]
[1766640180255,1.17446062,843.4,842.71,0.88892008]
[1766640180555,1.17446062,843.39,842.71,0.88892008]
[1766640180757,1.17446062,843.38,842.71,0.88892008]
[1766640180955,1.17446062,843.37,842.71,0.88892008]
[1766640181153,1.17446062,843.36,842.56,1.18794037]
[1766640181358,1.17446062,843.35,842.71,0.88999829]
[1766640181558,1.17446062,843.34,842.71,0.88999829]
[1766640181852,1.17446062,843.33,842.71,0.88999829]
[1766640182057,0.20636775,843.41,842.71,0.88999829]
[1766640182258,1.17444823,843.4,842.71,0.88999829]
[1766640182454,1.17444823,843.39,842.71,0.88999829]
[1766640182652,1.17444823,843.38,842.71,0.88999829]
[1766640182851,1.17444823,843.37,842.71,0.88999829]
[1766640183051,1.17444823,843.36,842.64,0.88999829]
[1766640183254,1.17444823,843.36,842.33,1.78191056]
[1766640183255,0.88816144,843.32,842.59,0.88999829]
[1766640183455,1.17444823,843.31,842.59,0.88999829]
[1766640183655,1.17444823,843.3,842.59,0.88999829]
[1766640183857,2.06260967,843.29,842.55,0.88999829]
[1766640184054,2.06260967,843.28,842.54,0.88999829]
[1766640184255,1.17444823,843.27,842.53,0.88999829]
[1766640184455,0.88816144,843.29,842.53,0.88999829]
[1766640184456,1.17444823,843.26,842.53,0.88999829]
[1766640184656,1.17444823,843.25,842.53,0.88999829]
[1766640184858,1.17444823,843.24,842.53,0.88999829]
[1766640185056,1.17444823,843.23,842.53,0.88999829]
[1766640185255,0.88816144,843.29,842.53,0.88999829]
[1766640185556,1.17335675,843.28,842.53,0.88999829]
[1766640185755,1.17335675,843.27,842.52,0.88999829]
[1766640185960,1.17335675,843.26,842.52,0.88999829]
[1766640186160,1.17335675,843.25,842.52,0.88999829]
[1766640186358,1.17335675,843.24,842.51,0.88999829]
[1766640186558,1.17335675,843.23,842.51,0.88999829]
[1766640186757,1.17335675,843.22,842.51,0.88999829]
[1766640186960,1.17335675,843.21,842.51,0.88999829]
[1766640187162,0.88816144,843.31,842.51,0.88999829]
[1766640187457,1.17266353,843.3,842.51,0.88999829]
[1766640187756,1.17266353,843.29,842.51,0.88999829]
[1766640187956,1.17266353,843.28,842.51,0.88999829]
[1766640188159,1.17266353,843.27,842.51,0.88999829]
[1766640188357,1.17266353,843.27,842.35,1.18794037]
[1766640188358,1.17266353,843.26,842.5,0.88999829]
[1766640188657,1.17266353,843.25,842.5,0.88999829]
[1766640188857,1.17266353,843.24,842.47,0.88999829]
[1766640189160,1.17266353,843.23,842.47,0.88999829]
[1766640189360,1.17266353,843.22,842.46,0.88999829]
[1766640189558,1.17266353,843.21,842.46,0.88999829]
[1766640189759,1.17266353,843.2,842.46,0.88999829]
[1766640190062,1.17266353,843.19,842.46,0.88999829]
[1766640190263,0.88816144,843.3,842.46,0.88999829]
[1766640190558,1.17671645,843.29,842.46,0.88999829]
[1766640190758,1.17671645,843.28,842.46,0.88999829]
[1766640190963,1.17671645,843.27,842.46,0.88999829]
[1766640191162,1.17671645,843.26,842.46,0.88999829]
[1766640191360,1.17671645,843.25,842.45,0.88999829]
[1766640191564,1.17671645,843.24,842.45,0.88999829]
[1766640191859,1.17671645,843.23,842.45,0.88999829]
[1766640192063,1.17671645,843.22,842.45,0.88999829]
[1766640192262,1.17671645,843.21,842.45,0.88999829]
[1766640192463,1.17671645,843.2,842.45,0.88999829]
[1766640192667,0.88816144,843.31,842.45,0.88999829]
[1766640192963,1.17639783,843.3,842.45,0.88999829]
[1766640193266,1.17639783,843.29,842.45,0.88999829]
[1766640193462,1.17639783,843.28,842.45,0.88999829]
[1766640193667,1.17639783,843.27,842.45,0.88999829]
[1766640193867,1.17639783,843.26,842.45,0.88999829]
[1766640194068,1.17639783,843.25,842.45,0.88999829]
[1766640194263,1.17639783,843.24,842.44,0.88999829]
[1766640194464,1.17639783,843.23,842.44,0.88999829]
[1766640194664,1.17639783,843.22,842.44,0.88999829]
[1766640194962,0.88816144,843.32,842.44,0.88999829]
[1766640194963,1.17639783,843.21,842.44,0.88999829]
[1766640195167,0.88816144,843.32,842.44,0.88999829]
[1766640195368,1.1760677,843.31,842.44,0.88999829]
[1766640195663,1.1760677,843.3,842.44,0.88999829]
[1766640195866,1.1760677,843.29,842.44,0.88999829]
[1766640196068,1.1760677,843.28,842.44,0.88999829]
[1766640196265,1.1760677,843.27,842.44,0.88999829]
[1766640196465,1.1760677,843.26,842.44,0.88999829]
[1766640196671,1.1760677,843.25,842.44,0.88999829]
[1766640196866,1.1760677,843.24,842.44,0.88999829]
[1766640197068,1.1760677,843.23,842.44,0.88999829]
[1766640197267,1.1760677,843.22,842.44,0.88999829]
[1766640197471,0.88816144,843.33,842.43,0.88999829]
[1766640197669,1.1758665,843.32,842.43,0.88999829]
[1766640197974,1.1758665,843.31,842.43,0.88999829]
[1766640198171,1.1758665,843.3,842.43,0.88999829]
[1766640198369,1.1758665,843.29,842.43,0.88999829]
[1766640198571,1.1758665,843.28,842.43,0.88999829]
[1766640198771,1.1758665,843.27,842.43,0.88999829]
[1766640198974,1.1758665,843.26,842.43,0.88999829]
[1766640199174,1.1758665,843.25,842.43,0.88999829]
[1766640199374,1.1758665,843.24,842.43,0.88999829]
[1766640199575,1.1758665,843.23,842.43,0.88999829]
[1766640199776,1.1758665,843.22,842.43,0.88999829]
[1766640199970,0.88816144,843.33,842.43,0.88999829]
[1766640200172,1.17573173,843.32,842.43,0.88999829]
[1766640200373,1.17573173,843.31,842.43,0.88999829]
[1766640200574,1.17573173,843.3,842.43,0.88999829]
[1766640200776,1.17573173,843.29,842.43,0.88999829]
[1766640200976,1.17573173,843.28,842.43,0.88999829]
[1766640201176,1.17573173,843.27,842.43,0.88999829]
[1766640201378,1.17573173,843.26,842.43,0.88999829]
[1766640201579,1.17573173,843.25,842.43,0.88999829]
[1766640201779,1.17573173,843.24,842.43,0.88999829]
[1766640202078,1.17573173,843.23,842.43,0.88999829]
[1766640202276,1.17573173,843.22,842.43,0.88999829]
[1766640202480,0.88816144,843.33,842.43,0.88999829]
[1766640202681,1.1755949,843.32,842.43,0.88999829]
[1766640202880,1.1755949,843.31,842.43,0.88999829]
[1766640203082,1.1755949,843.3,842.43,0.88999829]
[1766640203277,1.1755949,843.29,842.42,0.88999829]
[1766640203482,1.1755949,843.28,842.42,0.88999829]
[1766640203678,1.1755949,843.27,842.42,0.88999829]
[1766640203881,1.1755949,843.26,842.42,0.88999829]
[1766640204081,1.1755949,843.25,842.42,0.88999829]
[1766640204281,1.1755949,843.24,842.42,0.88999829]
[1766640204483,0.88816144,843.33,842.41,0.88999829]
[1766640204484,1.1755949,843.23,842.41,0.88999829]
[1766640204680,0.88816144,843.33,842.41,0.88999829]
[1766640204882,1.17554299,843.32,842.41,0.88999829]
[1766640205179,1.17554299,843.31,842.41,0.88999829]
[1766640205379,1.17554299,843.3,842.41,0.88999829]
[1766640205578,1.17554299,843.29,842.41,0.88999829]
[1766640205783,1.17554299,843.28,842.41,0.88999829]
[1766640205979,1.17554299,843.27,842.41,0.88999829]
[1766640206283,1.17554299,843.26,842.41,0.88999829]
[1766640206583,1.17554299,843.25,842.41,0.88999829]
[1766640206781,1.17554299,843.24,842.41,0.88999829]
[1766640206978,1.17554299,843.23,842.41,0.88999829]
[1766640207180,0.88816144,843.33,842.41,0.88999829]
[1766640207380,1.1755216,843.32,842.41,0.88999829]
[1766640207579,1.1755216,843.31,842.41,0.88999829]
[1766640207782,1.1755216,843.3,842.41,0.88999829]
[1766640207986,1.1755216,843.29,842.41,0.88999829]
[1766640208180,1.1755216,843.28,842.41,0.88999829]
[1766640208384,1.1755216,843.27,842.41,0.88999829]
[1766640208682,1.1755216,843.26,842.41,0.88999829]
[1766640208881,1.1755216,843.25,842.41,0.88999829]
[1766640209081,1.1755216,843.24,842.41,0.88999829]
[1766640209286,1.1755216,843.23,842.41,0.88999829]
[1766640209486,0.88816144,843.33,842.41,0.88999829]
[1766640209686,1.17554162,843.32,842.41,0.88999829]
[1766640209885,1.17554162,843.31,842.41,0.88999829]
[1766640210087,1.17554162,843.3,842.41,0.88999829]
[1766640210289,1.17554162,843.29,842.41,0.88999829]
[1766640210487,1.17554162,843.28,842.42,0.88999829]
[1766640210794,1.17554162,843.27,842.42,0.88999829]
[1766640211089,1.17554162,843.26,842.42,0.88999829]
[1766640211388,1.17554162,843.25,842.42,0.88999829]
[1766640211588,1.17554162,843.24,842.42,0.88999829]
[1766640211783,1.17554162,843.23,842.42,0.88999829]
[1766640211984,1.17554162,843.22,842.42,0.88999829]
[1766640212186,0.88816144,843.32,842.42,0.88999829]
[1766640212385,1.17560895,843.31,842.42,0.88999829]
[1766640212687,1.17560895,843.3,842.42,0.88999829]
[1766640212885,1.17560895,843.29,842.42,0.88999829]
[1766640213095,1.17560895,843.28,842.42,0.88999829]
[1766640213386,1.17560895,843.27,842.42,0.88999829]
[1766640213588,1.17560895,843.26,842.42,0.88999829]
[1766640213790,1.17560895,843.25,842.42,0.88999829]
[1766640213990,1.17560895,843.24,842.42,0.88999829]
[1766640214191,1.17560895,843.23,842.42,0.88999829]
[1766640214392,1.17560895,843.22,842.42,0.88999829]
[1766640214690,0.88816144,843.32,842.42,0.88999829]
[1766640214891,1.1757943,843.31,842.42,0.88999829]
[1766640215090,1.1757943,843.3,842.42,0.88999829]
[1766640215385,1.1757943,843.29,842.42,0.88999829]
[1766640215590,1.1757943,843.28,842.42,0.88999829]
[1766640215791,1.1757943,843.27,842.42,0.88999829]
[1766640215990,1.1757943,843.26,842.42,0.88999829]
[1766640216191,1.1757943,843.25,842.42,0.88999829]
[1766640216392,1.1757943,843.24,842.43,0.88999829]
[1766640216693,1.1757943,843.23,842.43,0.88999829]
[1766640216892,1.1757943,843.22,842.43,0.88999829]
[1766640217188,1.1757943,843.21,842.43,0.88999829]
[1766640217388,0.88816144,843.31,842.43,0.88999829]
[1766640217592,1.17605315,843.3,842.43,0.88999829]
[1766640217788,1.17605315,843.29,842.43,0.88999829]
[1766640217993,1.17605315,843.28,842.43,0.88999829]
[1766640218193,1.17605315,843.27,842.43,0.88999829]
[1766640218393,1.17605315,843.26,842.43,0.88999829]
[1766640218689,1.17605315,843.25,842.43,0.88999829]
[1766640218893,1.17605315,843.24,842.43,0.88999829]
[1766640219096,1.17605315,843.23,842.43,0.88999829]
[1766640219294,1.17605315,843.22,842.43,0.88999829]
[1766640219595,1.17605315,843.21,842.44,0.88999829]
[1766640219793,1.17605315,843.2,842.44,0.88999829]
[1766640220092,0.88816144,843.3,842.44,0.88999829]
[1766640220290,1.17662382,843.29,842.44,0.88999829]
[1766640220494,1.17662382,843.28,842.44,0.88999829]
[1766640220695,1.17662382,843.27,842.44,0.88999829]
[1766640220891,1.17662382,843.26,842.44,0.88999829]
[1766640221096,1.17662382,843.25,842.44,0.88999829]
[1766640221292,1.17662382,843.24,842.45,0.88999829]
[1766640221492,1.17662382,843.23,842.45,0.88999829]
[1766640221796,1.17662382,843.22,842.45,0.88999829]
[1766640222096,1.17662382,843.21,842.45,0.88999829]
[1766640222292,1.17662382,843.2,842.45,0.88999829]
[1766640222491,1.17662382,843.19,842.45,0.88999829]
[1766640222694,0.88816144,843.29,842.45,0.88999829]
[1766640222996,1.17718863,843.28,842.45,0.88999829]
[1766640223193,1.17718863,843.27,842.45,0.88999829]
[1766640223394,1.17718863,843.26,842.46,0.88999829]
[1766640223593,1.17718863,843.25,842.46,0.88999829]
[1766640223797,1.17718863,843.24,842.46,0.88999829]
[1766640224092,1.17718863,843.23,842.46,0.88999829]
[1766640224297,1.17718863,843.22,842.46,0.88999829]
[1766640224497,1.17718863,843.21,842.47,0.88999829]
[1766640224797,0.88816144,843.27,842.47,0.88999829]
[1766640224798,1.17718863,843.2,842.47,0.88999829]
[1766640224996,1.17718863,843.19,842.47,0.88999829]
[1766640225198,1.17718863,843.18,842.47,0.88999829]
[1766640225398,1.17718863,843.17,842.47,0.88999829]
[1766640225596,0.88816144,843.27,842.47,0.88999829]
[1766640225795,1.1778029,843.26,842.47,0.88999829]
[1766640225998,1.1778029,843.25,842.47,0.88999829]
[1766640226195,1.1778029,843.24,842.47,0.88999829]
[1766640226496,1.1778029,843.23,842.48,0.88999829]
[1766640226800,1.1778029,843.22,842.48,0.88999829]
[1766640227000,1.1778029,843.21,842.48,0.88999829]
[1766640227201,1.1778029,843.2,842.48,0.88999829]
[1766640227496,1.1778029,843.19,842.5,0.88999829]
[1766640227796,1.1778029,843.18,842.5,0.88999829]
[1766640228100,1.1778029,843.17,842.5,0.88999829]
[1766640228395,1.1778029,843.16,842.5,0.88999829]
[1766640228597,1.1778029,843.15,842.5,0.88999829]
[1766640228899,1.1778029,843.14,842.5,0.88999829]
[1766640229095,1.1778029,843.13,842.5,0.88999829]
[1766640229299,1.1778029,843.12,842.5,0.88999829]
[1766640229500,0.88816144,843.22,842.5,0.88999829]
[1766640229799,1.1791529,843.21,842.5,0.88999829]
[1766640229998,1.1791529,843.2,842.5,0.88999829]
[1766640230200,1.1791529,843.19,842.5,0.88999829]
[1766640230399,0.88816144,843.22,842.5,0.88999829]
[1766640230400,1.1791529,843.18,842.5,0.88999829]
[1766640230601,1.1791529,843.17,842.5,0.88999829]
[1766640230799,1.1791529,843.16,842.5,0.88999829]
[1766640230996,1.1791529,843.15,842.5,0.88999829]
[1766640231300,1.1791529,843.14,842.51,0.88999829]
[1766640231497,1.1791529,843.13,842.51,0.88999829]
[1766640231698,1.1791529,843.12,842.51,0.88999829]
[1766640231896,0.88816144,843.22,842.51,0.88999829]
[1766640232095,1.17924446,843.21,842.51,0.88999829]
[1766640232401,1.17924446,843.2,842.51,0.88999829]
[1766640232598,1.17924446,843.19,842.51,0.88999829]
[1766640232798,1.17924446,843.18,842.51,0.88999829]
[1766640233002,1.17924446,843.17,842.51,0.88999829]
[1766640233302,1.17924446,843.16,842.51,0.88999829]
[1766640233497,1.17924446,843.15,842.51,0.88999829]
[1766640233701,1.17924446,843.14,842.51,0.88999829]
[1766640233896,1.17924446,843.13,842.51,0.88999829]
[1766640234101,1.17924446,843.12,842.51,0.88999829]
[1766640234402,1.17924446,843.11,842.51,0.88999829]
[1766640234697,0.88816144,843.21,842.51,0.88999829]
[1766640234903,0.88816144,843.15,842.45,0.88999829]
[1766640235102,2.06757258,843.14,842.44,0.88999829]
[1766640235302,1.17941114,843.13,842.43,0.88999829]
[1766640235502,1.17941114,843.12,842.43,0.88999829]
[1766640235803,1.17941114,843.11,842.43,0.88999829]
[1766640236098,1.17892038,843.1,842.43,0.88999829]
[1766640236298,1.17892038,843.09,842.42,0.88999829]
[1766640236498,1.17892038,843.08,842.42,0.88999829]
[1766640236697,1.17892038,843.07,842.42,0.88999829]
[1766640236998,1.17892038,843.06,842.42,0.88999829]
[1766640237198,0.88816144,843.16,842.42,0.88999829]
[1766640237402,1.17860395,843.15,842.42,0.88999829]
[1766640237598,1.17860395,843.14,842.42,0.88999829]
[1766640237800,1.17860395,843.13,842.42,0.88999829]
[1766640237999,1.17860395,843.12,842.42,0.88999829]
[1766640238301,1.17860395,843.11,842.42,0.88999829]
[1766640238498,1.17860395,843.1,842.39,0.88999829]
[1766640238704,1.17860395,843.09,842.39,0.88989251]
[1766640238899,1.17860395,843.08,842.39,0.88989251]
[1766640239198,1.17860395,843.07,842.38,0.88989251]
[1766640239402,1.17860395,843.06,842.38,0.88989251]
[1766640239697,1.17860395,843.05,842.37,0.88989251]
[1766640239904,1.17860395,843.04,842.37,0.88989251]
[1766640240100,1.17860395,843.03,842.37,0.88989251]
[1766640240298,0.88745596,843.13,842.37,0.88989251]
[1766640240500,1.17825143,843.12,842.37,0.88989251]
[1766640240698,1.17825143,843.11,842.37,0.88989251]
[1766640240899,1.17825143,843.1,842.37,0.88989251]
[1766640241199,0.88745596,843.13,842.37,0.88989251]
[1766640241200,1.17825143,843.09,842.37,0.88989251]
[1766640241399,1.17825143,843.08,842.36,0.88989251]
[1766640241597,1.17825143,843.07,842.36,0.88989251]
[1766640241801,1.17825143,843.06,842.36,0.88989251]
[1766640242003,1.17825143,843.05,842.36,0.88989251]
[1766640242201,1.17825143,843.04,842.35,0.88989251]
[1766640242405,0.88745596,843.14,842.35,0.88989251]
[1766640242605,1.17788006,843.13,842.35,0.88989251]
[1766640242901,1.17788006,843.12,842.35,0.88989251]
[1766640243106,1.17788006,843.11,842.35,0.88989251]
[1766640243300,1.17788006,843.1,842.35,0.88989251]
[1766640243506,1.17788006,843.09,842.35,0.88989251]
[1766640243700,1.17788006,843.08,842.35,0.88989251]
[1766640243900,1.17788006,843.07,842.35,0.88989251]
[1766640244100,1.17788006,843.06,842.35,0.88989251]
[1766640244404,1.17788006,843.05,842.35,0.88989251]
[1766640244602,0.88745596,843.15,842.35,0.88989251]
[1766640244805,1.1776398,843.14,842.35,0.88989251]
[1766640245007,1.1776398,843.13,842.35,0.88989251]
[1766640245206,1.1776398,843.12,842.34,0.88989251]
[1766640245507,1.1776398,843.11,842.34,0.88989251]
[1766640245806,1.1776398,843.1,842.34,0.88989251]
[1766640246105,1.1776398,843.09,842.34,0.88989251]
[1766640246306,1.1776398,843.08,842.34,0.88989251]
[1766640246505,1.1776398,843.07,842.34,0.88989251]
[1766640246706,1.1776398,843.06,842.34,0.88989251]
[1766640246905,1.1776398,843.05,842.34,0.88989251]
[1766640247105,0.88745596,843.15,842.34,0.88989251]
[1766640247305,1.17737095,843.14,842.34,0.88989251]
[1766640247599,1.17737095,843.13,842.34,0.88989251]
[1766640247804,1.17737095,843.12,842.34,0.88989251]
[1766640248001,1.17737095,843.11,842.34,0.88989251]
[1766640248206,1.17737095,843.1,842.34,0.88989251]
[1766640248505,1.17737095,843.09,842.34,0.88989251]
[1766640248702,1.17737095,843.08,842.34,0.88989251]
[1766640249002,1.17737095,843.07,842.34,0.88989251]
[1766640249204,1.17737095,843.06,842.33,0.88989251]
[1766640249404,0.88745596,843.16,842.33,0.88989251]
[1766640249604,1.17796029,843.15,842.33,0.88989251]
[1766640249803,0.88745596,843.16,842.33,0.88989251]
[1766640249804,1.17796029,843.14,842.33,0.88989251]
[1766640250101,1.17796029,843.13,842.33,0.88989251]
[1766640250302,1.17796029,843.12,842.33,0.88989251]
[1766640250605,1.17796029,843.11,842.33,0.88989251]
[1766640250804,1.17796029,843.1,842.33,0.88989251]
[1766640251003,1.17796029,843.09,842.33,0.88989251]
[1766640251206,1.17796029,843.08,842.33,0.88989251]
[1766640251409,1.17796029,843.07,842.33,0.88989251]
[1766640251603,1.17796029,843.06,842.33,0.88989251]
[1766640251907,0.88745596,843.16,842.33,0.88989251]
[1766640252204,1.17785684,843.15,842.33,0.88989251]
[1766640252402,1.17785684,843.14,842.33,0.88989251]
[1766640252606,1.17785684,843.13,842.33,0.88989251]
[1766640252906,1.17785684,843.12,842.33,0.88989251]
[1766640253104,1.17785684,843.11,842.33,0.88989251]
[1766640253308,1.17785684,843.1,842.33,0.88989251]
[1766640253505,1.17785684,843.09,842.33,0.88989251]
[1766640253707,1.17785684,843.08,842.33,0.88989251]
[1766640254009,1.17785684,843.07,842.33,0.88989251]
[1766640254211,1.17785684,843.06,842.33,0.88989251]
[1766640254410,0.88745596,843.16,842.33,0.88989251]
[1766640254607,1.17775373,843.15,842.33,0.88989251]
[1766640254812,1.17775373,843.14,842.33,0.88989251]
[1766640255012,1.17775373,843.13,842.33,0.88989251]
[1766640255209,1.17775373,843.12,842.33,0.88989251]
[1766640255408,1.17775373,843.11,842.33,0.88989251]
[1766640255613,1.17775373,843.1,842.33,0.88989251]
[1766640255813,1.17775373,843.09,842.33,0.88989251]
[1766640256114,1.17775373,843.08,842.33,0.88989251]
[1766640256314,1.17775373,843.07,842.33,0.88989251]
[1766640256512,0.88745596,843.17,842.33,0.88989251]
[1766640256513,1.17775373,843.06,842.33,0.88989251]
[1766640256714,0.88745596,843.17,842.33,0.88989251]
[1766640256914,1.17771661,843.16,842.33,0.88989251]
[1766640257213,1.17771661,843.15,842.33,0.88989251]
[1766640257411,1.17771661,843.14,842.33,0.88989251]
[1766640257612,1.17771661,843.13,842.33,0.88989251]
[1766640257813,1.17771661,843.12,842.33,0.88989251]
[1766640258010,1.17771661,843.11,842.33,0.88989251]
[1766640258311,1.17771661,843.1,842.33,0.88989251]
[1766640258516,1.17771661,843.09,842.33,0.88989251]
[1766640258714,1.17771661,843.08,842.33,0.88989251]
[1766640259010,1.17771661,843.07,842.33,0.88989251]
[1766640259211,1.17771661,843.06,842.33,0.88989251]
[1766640259515,0.88745596,843.17,842.33,0.88989251]
[1766640259715,1.17770528,843.16,842.33,0.88989251]
[1766640259912,1.17770528,843.15,842.33,0.88989251]
[1766640260117,1.17770528,843.14,842.33,0.88989251]
[1766640260318,1.17770528,843.13,842.33,0.88989251]
[1766640260618,1.17770528,843.12,842.33,0.88989251]
[1766640260816,1.17770528,843.11,842.33,0.88989251]
[1766640261019,1.17770528,843.1,842.33,0.88989251]
[1766640261215,1.17770528,843.09,842.33,0.88989251]
[1766640261419,1.17770528,843.08,842.33,0.88989251]
[1766640261619,1.17770528,843.07,842.33,0.88989251]
[1766640261820,1.17770528,843.06,842.33,0.88989251]
[1766640262018,0.88745596,843.17,842.33,0.88989251]
[1766640262217,2.06518658,843.16,842.33,0.88989251]
[1766640262420,1.17773062,843.15,842.33,0.88989251]
[1766640268223,1.17773062,843.15,842.34,0.88989251]
[1766640270324,2.06518658,843.15,842.34,0.88989251]
[1766640270520,1.17773062,843.14,842.34,0.88989251]
[1766640272324,1.17773062,843.14,842.35,0.88989251]
[1766640274326,2.06518658,843.14,842.35,0.88989251]